bitfinex-derivatives/quotes_SOLF0:USTF0_20250712
["timestamp","ask_amount","ask_price","bid_price","bid_amount"]
[1752284452068,9.43682293,163.44,163.42,3.26]
[1752284452268,9.43682293,163.44,163.41,6.1172]
[1752284452573,9.43682293,163.44,163.43,3.26]
[1752284452968,0.04032293,163.44,163.43,3.26]
[1752284457877,0.04032293,163.44,163.43,9.3766]
[1752284458075,70.92,163.48,163.43,3.26]
[1752284458276,70.92,163.48,163.45,3.26]
[1752284458674,77.0348,163.48,163.45,3.26]
[1752284458871,70.92,163.48,163.46,3.26]
[1752284459070,282.32,163.53,163.47,3.26]
[1752284459273,6.1146,163.49,163.47,3.26]
[1752284459478,6.1146,163.49,163.48,0.04008466]
[1752284459774,6.1146,163.49,163.48,3.30008466]
[1752284461375,9.3946,163.49,163.48,3.30008466]
[1752284461570,6.1146,163.49,163.48,3.30008466]
[1752284464682,6.1141,163.5,163.48,3.30008466]
[1752284469088,6.1138,163.51,163.49,3.26]
[1752284469292,285.6,163.53,163.49,3.26]
[1752284469491,6.1135,163.52,163.49,9.3741]
[1752284469791,3.28,163.52,163.5,3.26]
[1752284470284,3.28,163.52,163.49,3.26]
[1752284470686,6.1139,163.51,163.49,3.26]
[1752284471688,6.1139,163.51,163.5,3.26]
[1752284472887,282.32,163.53,163.5,3.26]
[1752284473096,285.6,163.53,163.5,3.26]
[1752284473493,6.1136,163.52,163.5,3.26]
[1752284475494,9.5736,163.52,163.5,3.26]
[1752284476390,6.1136,163.52,163.5,3.26]
[1752284477092,70.86,163.53,163.5,3.26]
[1752284477294,70.86,163.53,163.5,3.77136073]
[1752284477494,70.86,163.53,163.51,3.31]
[1752284478098,70.86,163.53,163.51,9.4234]
[1752284478392,70.86,163.53,163.52,3.31]
[1752284479097,76.9729,163.53,163.52,3.31]
[1752284480094,80.4329,163.53,163.52,3.31]
[1752284480699,3.46,163.53,163.49,3.31]
[1752284482500,74.22,163.55,163.49,3.31]
[1752284482702,3.46,163.55,163.51,3.31]
[1752284482897,6.1127,163.54,163.51,6.1134]
[1752284483100,3.46,163.54,163.53,3.31]
[1752284483898,9.5725,163.54,163.53,3.31]
[1752284484405,6.1125,163.54,163.53,3.31]
[1752284485205,6.1123,163.55,163.53,3.31]
[1752284485503,70.76,163.57,163.52,6.15807192]
[1752284485707,3.46,163.56,163.53,3.31]
[1752284487101,6.1125,163.54,163.53,3.31]
[1752284487302,9.5725,163.54,163.53,3.31]
[1752284487702,3.46,163.56,163.53,3.31]
[1752284487903,70.76,163.57,163.53,3.31]
[1752284488104,3.46,163.55,163.53,3.31]
[1752284489107,6.1125,163.54,163.53,3.31]
[1752284489308,3.46,163.55,163.53,3.31]
[1752284489907,9.5725,163.55,163.53,3.31]
[1752284490110,3.46,163.55,163.53,3.31]
[1752284490709,9.5723,163.55,163.53,3.31]
[1752284491208,6.1123,163.55,163.53,3.31]
[1752284491408,6.1123,163.55,163.54,3.31]
[1752284492108,74.22,163.57,163.54,9.4223]
[1752284492315,74.22,163.57,163.55,3.31]
[1752284492612,6.1118,163.56,163.55,3.31]
[1752284494110,76.8715,163.57,163.55,3.31]
[1752284494310,80.3315,163.57,163.55,3.31]
[1752284495410,6.1118,163.56,163.55,3.31]
[1752284495607,3.46,163.56,163.53,3.31]
[1752284496513,3.46,163.56,163.52,0.04487192]
[1752284496707,3.46,163.56,163.54,3.31]
[1752284496909,9.5721,163.55,163.54,3.31]
[1752284501116,6.1119,163.56,163.54,3.31]
[1752284501318,3.46,163.56,163.54,3.31]
[1752284501611,3.46,163.55,163.52,3.81623265]
[1752284501815,6.1127,163.54,163.52,3.81623265]
[1752284502011,6.1127,163.54,163.53,3.31]
[1752284505519,9.5723,163.55,163.53,3.31]
[1752284506908,6.1123,163.55,163.53,3.31]
[1752284508318,9.4823,163.55,163.53,3.31]
[1752284509818,6.1125,163.54,163.53,3.31]
[1752284510123,9.4825,163.54,163.53,3.31]
[1752284514124,9.4823,163.55,163.53,3.31]
[1752284517325,6.1125,163.54,163.53,3.31]
[1752284519420,9.4823,163.55,163.53,3.31]
[1752284520324,3.37,163.57,163.54,3.44]
[1752284520628,3.37,163.58,163.54,3.44]
[1752284521422,3.37,163.58,163.55,3.44]
[1752284522527,6.1118,163.56,163.55,3.44]
[1752284522730,9.4818,163.56,163.55,3.44]
[1752284523319,6.1121,163.55,163.54,3.48387993]
[1752284523628,3.37,163.56,163.54,3.48387993]
[1752284523829,3.37,163.56,163.54,9.59607993]
[1752284524021,3.37,163.58,163.55,3.44]
[1752284525234,6.1114,163.57,163.55,3.44]
[1752284525726,3.37,163.58,163.55,3.44]
[1752284526331,9.4811,163.58,163.55,9.5519]
[1752284526632,9.4811,163.58,163.56,3.44]
[1752284529034,80.2008,163.59,163.56,9.5515]
[1752284529330,80.2008,163.59,163.57,3.44]
[1752284530729,9.481,163.58,163.57,3.44]
[1752284530928,3.37,163.57,163.56,3.44]
[1752284531633,9.4814,163.57,163.56,3.44]
[1752284533130,9.4821,163.55,163.54,0.04387993]
[1752284533730,9.4821,163.55,163.54,3.48387993]
[1752284540240,6.1121,163.55,163.54,3.48387993]
[1752284540538,9.3921,163.55,163.54,3.48387993]
[1752284544231,9.3921,163.55,163.54,0.04387993]
[1752284544638,3.28,163.52,163.5,8.87068122]
[1752284544943,3.28,163.52,163.5,3.29]
[1752284545138,6.1139,163.51,163.5,3.29]
[1752284545338,9.3939,163.51,163.5,3.29]
[1752284546739,6.1139,163.51,163.5,3.29]
[1752284547345,9.43361633,163.52,163.5,3.29]
[1752284548240,0.04021633,163.52,163.51,3.29]
[1752284549641,3.32021633,163.52,163.51,3.29]
[1752284550043,0.04021633,163.52,163.51,3.29]
[1752284552152,6.15351633,163.52,163.51,3.29]
[1752284552350,9.43351633,163.52,163.51,3.29]
[1752284552847,0.04021633,163.52,163.51,3.29]
[1752284554352,6.15351633,163.52,163.51,3.29]
[1752284557046,6.15351633,163.52,163.5,6.114]
[1752284557251,6.15351633,163.52,163.51,3.29]
[1752284558853,0.04021633,163.52,163.51,3.29]
[1752284561862,3.32021633,163.52,163.51,3.29]
[1752284562564,0.04021633,163.52,163.51,3.29]
[1752284563055,3.28,163.55,163.51,3.29]
[1752284563764,9.3923,163.55,163.53,3.29]
[1752284564261,6.1123,163.55,163.53,3.29]
[1752284564464,9.3923,163.55,163.53,3.29]
[1752284572875,0.04497865,163.56,163.55,3.38]
[1752284574575,0.04497865,163.56,163.55,5.79120745]
[1752284574870,0.04497865,163.56,163.55,3.38]
[1752284576173,6.15677865,163.56,163.55,3.38]
[1752284576368,9.58677865,163.56,163.55,3.38]
[1752284579969,0.04497865,163.56,163.55,3.38]
[1752284580172,0.04497865,163.56,163.55,7.1475218]
[1752284580364,285.41,163.6,163.56,3.38]
[1752284581173,6.1108,163.59,163.56,9.4916]
[1752284581377,3.43,163.59,163.57,3.38]
[1752284581674,281.98,163.6,163.57,3.38]
[1752284581675,3.43,163.58,163.57,3.38]
[1752284582270,6.1108,163.59,163.57,6.1113]
[1752284582574,70.68,163.63,163.58,3.38]
[1752284582769,6.1097,163.62,163.6,3.38]
[1752284583577,80.2192,163.63,163.6,9.4902]
[1752284583769,80.2192,163.63,163.61,3.38]
[1752284584278,76.7892,163.63,163.61,3.38]
[1752284585171,80.2192,163.63,163.61,3.38]
[1752284585379,6.1095,163.62,163.61,3.38]
[1752284588077,9.5395,163.62,163.61,3.38]
[1752284591481,80.2192,163.63,163.61,3.38]
[1752284591780,74.11,163.63,163.61,3.38]
[1752284591981,6.1095,163.62,163.61,3.38]
[1752284592381,9.5395,163.62,163.61,3.38]
[1752284593383,6.1095,163.62,163.61,3.38]
[1752284593879,9.5395,163.62,163.61,3.38]
[1752284596679,9.6699,163.61,163.6,3.55]
[1752284597090,70.68,163.63,163.59,0.04620957]
[1752284597282,3.56,163.62,163.59,3.59620957]
[1752284597474,9.6703,163.6,163.59,0.04620957]
[1752284598486,3.7675218,163.6,163.51,5.08575808]
[1752284598784,3.56,163.55,163.51,3.55]
[1752284599087,9.6722,163.55,163.52,3.55]
[1752284599280,3.56,163.55,163.52,3.55]
[1752284599477,3.56,163.55,163.52,9.6629]
[1752284599678,3.56,163.55,163.53,3.55]
[1752284600187,9.672,163.56,163.53,3.55]
[1752284602883,3.56,163.55,163.53,3.55]
[1752284603489,3.56,163.54,163.52,6.15326551]
[1752284604192,3.56,163.54,163.53,3.55]
[1752284607292,6.1124,163.55,163.53,3.55]
[1752284607494,3.56,163.57,163.53,3.55]
[1752284607894,3.56,163.57,163.54,3.55]
[1752284608492,9.6716,163.57,163.54,3.55]
[1752284611100,9.6716,163.57,163.54,6.1124]
[1752284611399,9.6716,163.57,163.55,3.55]
[1752284611798,71.72395989,163.63,163.55,3.55]
[1752284612099,3.56,163.62,163.55,3.55]
[1752284612499,3.56,163.62,163.58,3.55]
[1752284612894,3.56,163.61,163.58,3.55]
[1752284613398,6.1105,163.6,163.58,3.55]
[1752284613600,9.6705,163.6,163.58,3.55]
[1752284614003,6.1106,163.59,163.58,3.55]
[1752284615301,9.6706,163.59,163.58,3.55]
[1752284631616,2.41087639,163.62,163.57,0.0443919]
[1752284631617,9.591,163.58,163.57,0.0443919]
[1752284631916,3.48,163.57,163.53,3.59]
[1752284632125,9.5925,163.54,163.53,3.59]
[1752284632513,6.1132,163.53,163.52,3.59]
[1752284632710,9.5932,163.53,163.52,3.59]
[1752284636718,6.1132,163.53,163.52,3.59]
[1752284636919,3.51897123,163.54,163.52,3.59]
[1752284638213,9.63157123,163.54,163.52,3.59]
[1752284638528,3.48,163.53,163.49,3.59]
[1752284638720,9.594,163.5,163.49,3.59]
[1752284638922,6.114,163.5,163.45,5.08575808]
[1752284639116,3.48,163.49,163.46,6.1154]
[1752284639518,0.04031692,163.49,163.46,3.59]
[1752284640223,0.04031692,163.49,163.47,6.1149]
[1752284640420,0.04031692,163.49,163.48,3.59]
[1752284640724,0.04031692,163.49,163.48,9.7048]
[1752284641019,3.48,163.54,163.48,7.36197692]
[1752284641220,9.5928,163.54,163.49,3.59]
[1752284641428,3.48,163.53,163.51,3.59]
[1752284642220,9.5929,163.53,163.51,3.59]
[1752284642519,3.48,163.56,163.51,9.7036]
[1752284642824,3.48,163.57,163.52,3.59]
[1752284643521,3.48,163.57,163.53,3.59]
[1752284644018,3.48,163.56,163.53,3.59]
[1752284644216,6.1118,163.56,163.53,3.59]
[1752284644413,9.5918,163.56,163.53,3.59]
[1752284644616,9.5918,163.56,163.53,3.63545235]
[1752284646327,9.5918,163.56,163.53,6.15825235]
[1752284646625,9.5918,163.56,163.54,3.59]
[1752284648225,214.74,163.59,163.54,6.1124]
[1752284648523,214.74,163.59,163.55,3.59]
[1752284648930,220.8507,163.59,163.55,6.1118]
[1752284649132,220.8507,163.59,163.56,3.59]
[1752284649324,214.74,163.59,163.56,3.59]
[1752284649925,3.48,163.58,163.56,3.59]
[1752284650224,9.591,163.58,163.56,3.59]
[1752284651831,217.3708,163.59,163.56,9.7017]
[1752284652031,220.8508,163.59,163.56,9.7017]
[1752284652233,220.8508,163.59,163.57,3.59]
[1752284652435,217.3708,163.59,163.57,3.59]
[1752284655026,6.1108,163.59,163.57,3.59]
[1752284656238,9.6008,163.59,163.57,3.59]
[1752284657927,6.1108,163.59,163.57,3.59]
[1752284658134,9.6008,163.59,163.57,3.59]
[1752284660245,9.601,163.58,163.57,3.59]
[1752284660746,3.49,163.58,163.57,3.59]
[1752284661435,9.6013,163.58,163.56,3.46040396]
[1752284661640,3.49,163.57,163.56,3.46040396]
[1752284661836,3.49,163.57,163.56,0.04040396]
[1752284662636,9.6014,163.57,163.56,0.04040396]
[1752284662844,3.49,163.57,163.52,3.42]
[1752284663241,9.6025,163.54,163.53,3.42]
[1752284664441,3.49,163.54,163.53,3.42]
[1752284664943,9.6022,163.55,163.53,3.42]
[1752284666644,3.49,163.55,163.53,3.42]
[1752284667639,9.6022,163.55,163.53,3.42]
[1752284669942,3.49,163.54,163.52,6.113]
[1752284670544,3.49,163.54,163.53,3.42]
[1752284670944,3.49,163.54,163.53,9.5329]
[1752284671146,3.53295382,163.55,163.54,3.42]
[1752284671347,0.04295382,163.55,163.54,3.42]
[1752284671549,0.04295382,163.55,163.54,9.5325]
[1752284673747,70.62,163.6,163.56,6.1116]
[1752284673950,3.49,163.59,163.57,3.42]
[1752284674349,3.49,163.59,163.56,3.42]
[1752284675042,6.1112,163.58,163.56,3.46520522]
[1752284675250,9.6012,163.58,163.56,3.46520522]
[1752284680249,6.1112,163.58,163.56,3.46520522]
[1752284680453,3.49,163.57,163.56,3.46520522]
[1752284681061,9.6012,163.58,163.56,3.46520522]
[1752284681553,6.1112,163.58,163.56,3.46520522]
[1752284681754,3.49,163.57,163.56,3.46520522]
[1752284682451,9.6012,163.58,163.56,3.46520522]
[1752284682954,6.1112,163.58,163.56,3.46520522]
[1752284683155,9.6012,163.58,163.57,3.42]
[1752284683851,3.49,163.58,163.57,3.42]
[1752284684161,9.6009,163.59,163.57,3.42]
[1752284685855,6.1109,163.59,163.57,3.42]
[1752284686059,3.33,163.58,163.57,3.42]
[1752284686255,9.4409,163.59,163.57,3.42]
[1752284689357,9.4409,163.59,163.57,9.5314]
[1752284689659,9.4409,163.59,163.58,3.42]
[1752284699971,3.33,163.59,163.58,3.42]
[1752284701766,9.4406,163.59,163.58,3.42]
[1752284702270,3.33,163.59,163.58,3.42]
[1752284702768,9.4406,163.59,163.58,3.42]
[1752284704971,3.33,163.59,163.58,3.42]
[1752284710369,0.04516526,163.6,163.58,9.531]
[1752284710670,0.04516526,163.6,163.59,5.83074041]
[1752284711073,0.04516526,163.6,163.59,11.94134041]
[1752284712274,0.04516526,163.6,163.59,17.04356091]
[1752284713269,73.91,163.64,163.59,10.93296091]
[1752284713577,211.24,163.65,163.63,5.83074041]
[1752284713873,211.24,163.65,163.64,3.42]
[1752284714170,214.57,163.65,163.64,3.42]
[1752284714474,220.6784,163.65,163.64,3.42]
[1752284715777,211.24,163.65,163.64,3.42]
[1752284716172,214.61,163.65,163.64,3.42]
[1752284716773,15.82162826,163.71,163.64,3.42]
[1752284717075,3.37,163.68,163.67,3.31]
[1752284717276,72.97074041,163.7,163.67,3.31]
[1752284717479,3.37,163.69,163.67,3.31]
[1752284717674,6.108,163.66,163.65,2.41074041]
[1752284717873,76.668,163.66,163.65,2.41074041]
[1752284718071,76.668,163.66,163.65,5.72074041]
[1752284718267,80.038,163.66,163.65,5.72074041]
[1752284720679,9.4784,163.65,163.64,0.04115015]
[1752284721584,72.96852845,163.66,163.61,5.71852845]
[1752284721585,3.37,163.63,163.61,5.71852845]
[1752284721883,3.37,163.63,163.62,3.31]
[1752284722078,9.4792,163.63,163.62,3.31]
[1752284722280,3.37,163.65,163.62,3.31]
[1752284722781,3.37,163.65,163.62,3.35303333]
[1752284723078,9.4785,163.65,163.62,2.45229089]
[1752284723282,9.4785,163.65,163.63,3.31]
[1752284723579,3.37,163.65,163.64,2.40925756]
[1752284723780,3.37,163.65,163.64,5.71925756]
[1752284723980,80.038,163.66,163.64,2.40925756]
[1752284724185,80.038,163.66,163.65,3.31]
[1752284725379,6.1086,163.65,163.64,3.31]
[1752284725578,9.4786,163.65,163.64,3.31]
[1752284726984,5.77925756,163.65,163.62,0.04303333]
[1752284727183,3.37,163.64,163.62,0.04303333]
[1752284727580,9.4791,163.63,163.62,0.04303333]
[1752284727877,9.4791,163.63,163.62,3.35303333]
[1752284732485,6.1089,163.64,163.62,3.35303333]
[1752284732883,3.37,163.65,163.62,3.35303333]
[1752284733080,3.37,163.66,163.62,3.35303333]
[1752284733480,3.37,163.65,163.62,3.35303333]
[1752284733680,9.4787,163.65,163.62,3.35303333]
[1752284734389,9.4787,163.65,163.62,6.15243333]
[1752284734588,9.4787,163.65,163.63,3.31]
[1752284735686,3.37,163.65,163.63,6.1091]
[1752284735886,3.37,163.65,163.64,3.31]
[1752284737289,9.4784,163.65,163.64,3.31]
[1752284737888,6.1084,163.65,163.64,3.31]
[1752284738286,9.4784,163.65,163.64,3.31]
[1752284738984,9.478,163.66,163.64,3.31]
[1752284740589,3.41247102,163.67,163.65,3.31]
[1752284740892,3.41247102,163.67,163.62,0.04303333]
[1752284740893,3.41247102,163.67,163.62,3.80661899]
[1752284741095,9.52017102,163.67,163.66,3.31]
[1752284744190,6.1089,163.64,163.62,0.04303333]
[1752284744493,3.37,163.63,163.62,0.04303333]
[1752284744685,3.37,163.63,163.62,3.41303333]
[1752284744890,9.4791,163.63,163.62,3.41303333]
[1752284745194,9.5191,163.63,163.62,0.04303333]
[1752284746887,3.41,163.59,163.56,5.1022205]
[1752284747091,3.41,163.62,163.54,5.1022205]
[1752284747491,6.1113,163.58,163.55,3.37]
[1752284747897,9.5213,163.58,163.55,3.37]
[1752284748196,6.1114,163.57,163.55,3.37]
[1752284748394,0.04085945,163.58,163.55,3.37]
[1752284748595,3.41,163.57,163.55,3.37]
[1752284749200,9.5216,163.57,163.55,3.37]
[1752284750796,6.1118,163.56,163.55,3.37]
[1752284751197,3.41,163.57,163.55,3.37]
[1752284751699,9.5217,163.57,163.55,3.37]
[1752284752492,6.1117,163.57,163.55,3.37]
[1752284752693,3.41,163.57,163.55,3.37]
[1752284752893,3.45085945,163.58,163.55,3.37]
[1752284753198,0.04085945,163.58,163.55,9.4819]
[1752284753400,3.45085945,163.58,163.56,3.37]
[1752284757397,3.41,163.57,163.56,3.37]
[1752284761997,9.5214,163.57,163.56,3.37]
[1752284762805,3.41,163.57,163.56,3.37]
[1752284763208,9.56195945,163.58,163.56,3.37]
[1752284764604,6.1114,163.57,163.56,3.37]
[1752284764809,3.41,163.57,163.56,3.37]
[1752284765005,0.04085945,163.58,163.56,3.37]
[1752284765700,0.04085945,163.58,163.57,6.1114]
[1752284765895,0.04085945,163.58,163.57,9.4814]
[1752284769300,0.04085945,163.58,163.57,3.37]
[1752284769908,9.56185945,163.58,163.57,3.37]
[1752284770103,9.56185945,163.58,163.55,0.03877813]
[1752284770104,3.41,163.57,163.56,3.37]
[1752284770404,3.41,163.57,163.55,3.40877813]
[1752284770806,9.5218,163.56,163.55,3.40877813]
[1752284773714,3.41,163.56,163.55,3.40877813]
[1752284773905,9.5215,163.57,163.55,3.40877813]
[1752284775007,3.41,163.57,163.55,9.52087813]
[1752284775212,3.41,163.57,163.56,3.43]
[1752284775811,3.40085945,163.58,163.57,3.43]
[1752284776207,0.04085945,163.58,163.57,3.43]
[1752284776812,3.40085945,163.58,163.57,3.43]
[1752284778112,9.51185945,163.58,163.57,3.43]
[1752284779518,6.1115,163.57,163.56,3.43]
[1752284779816,9.4715,163.57,163.56,3.43]
[1752284780015,3.36,163.57,163.56,3.43]
[1752284780417,9.4714,163.57,163.56,3.43]
[1752284782818,0.04085945,163.58,163.56,3.43]
[1752284785619,0.04085945,163.58,163.56,6.1117]
[1752284785821,0.04085945,163.58,163.57,3.43]
[1752284787625,6.15185945,163.58,163.57,3.43]
[1752284787920,9.51185945,163.58,163.57,3.43]
[1752284788714,9.4716,163.57,163.56,3.43]
[1752284789114,3.36,163.57,163.56,3.43]
[1752284789722,9.51215945,163.58,163.56,3.43]
[1752284790120,0.04085945,163.58,163.56,3.43]
[1752284790820,0.04085945,163.58,163.56,9.5415]
[1752284791123,0.04085945,163.58,163.57,3.43]
[1752284798729,0.04085945,163.58,163.57,9.5414]
[1752284798923,0.04085945,163.58,163.57,3.43]
[1752284800225,6.15185945,163.58,163.57,3.43]
[1752284800630,9.51185945,163.58,163.57,3.43]
[1752284801020,9.4718,163.56,163.55,5.14099863]
[1752284801429,3.40085945,163.58,163.55,11.25309863]
[1752284801629,9.51215945,163.58,163.56,3.43]
[1752284804434,9.4714,163.57,163.56,3.43]
[1752284805334,6.1118,163.56,163.55,3.45877813]
[1752284805536,9.3718,163.56,163.55,3.45877813]
[1752284808435,3.26,163.56,163.55,3.45877813]
[1752284809038,6.1116,163.57,163.55,3.45877813]
[1752284809237,9.3716,163.57,163.55,3.45877813]
[1752284810938,3.26,163.56,163.55,3.45877813]
[1752284811132,6.1116,163.57,163.55,3.45877813]
[1752284811535,9.3716,163.57,163.55,3.45877813]
[1752284812939,9.3718,163.56,163.55,3.45877813]
[1752284814142,3.26,163.56,163.55,3.45877813]
[1752284814642,6.1115,163.57,163.55,3.45877813]
[1752284814836,9.3715,163.57,163.55,3.45877813]
[1752284815943,9.3718,163.56,163.55,3.45877813]
[1752284816838,6.1118,163.56,163.55,3.45877813]
[1752284817238,9.3715,163.57,163.55,3.45877813]
[1752284817443,3.26,163.57,163.55,3.45877813]
[1752284817738,9.3714,163.57,163.56,3.42]
[1752284823246,6.1118,163.56,163.55,0.03877813]
[1752284823444,3.26,163.56,163.53,5.11888836]
[1752284823647,3.26,163.56,163.53,3.42]
[1752284823844,3.80879649,163.58,163.52,3.42]
[1752284823845,3.26,163.53,163.52,3.42]
[1752284824042,3.26,163.53,163.5,5.11888836]
[1752284824351,9.3733,163.52,163.51,3.42]
[1752284826849,3.26,163.5,163.49,3.42]
[1752284829048,9.374,163.5,163.49,3.42]
[1752284832151,3.26,163.5,163.49,3.42]
[1752284832453,0.04354267,163.53,163.49,3.42]
[1752284833046,0.04354267,163.53,163.5,6.1138]
[1752284833249,3.30354267,163.53,163.51,3.42]
[1752284833755,3.26,163.52,163.51,3.42]
[1752284835756,9.73674267,163.53,163.51,3.42]
[1752284838159,3.62354267,163.53,163.51,3.42]
[1752284840356,9.73644267,163.53,163.51,3.42]
[1752284840653,3.62354267,163.53,163.51,3.42]
[1752284841358,9.73654267,163.53,163.51,3.42]
[1752284844163,9.6933,163.52,163.51,3.42]
[1752284845960,3.58,163.52,163.51,3.42]
[1752284847163,9.6933,163.52,163.51,3.42]
[1752284848663,0.04354267,163.53,163.51,3.42]
[1752284848860,3.58,163.57,163.52,5.77178743]
[1752284849065,3.58,163.57,163.5,5.11888836]
[1752284849066,9.6915,163.57,163.55,3.36]
[1752284849761,211.3,163.58,163.56,2.41178743]
[1752284849960,211.3,163.58,163.57,3.36]
[1752284851559,0.04172064,163.59,163.57,3.36]
[1752284851956,0.04172064,163.59,163.58,6.111]
[1752284852161,0.04172064,163.59,163.58,9.471]
[1752284852961,0.04172064,163.59,163.58,3.36]
[1752284853262,3.62172064,163.59,163.58,3.36]
[1752284854061,9.73232064,163.59,163.58,3.36]
[1752284854462,3.58,163.58,163.55,3.36]
[1752284854662,3.58,163.57,163.55,3.36]
[1752284854857,3.58,163.58,163.55,3.36]
[1752284856068,3.58,163.58,163.56,3.36]
[1752284856367,0.04172064,163.59,163.56,3.36]
[1752284857262,0.04172064,163.59,163.57,3.36]
[1752284857859,0.04172064,163.59,163.58,9.471]
[1752284858263,0.04172064,163.59,163.58,3.36]
[1752284862177,0.04172064,163.59,163.58,9.471]
[1752284862571,0.04172064,163.59,163.58,3.36]
[1752284863779,0.04172064,163.59,163.58,9.471]
[1752284863981,3.58,163.68,163.59,3.36]
[1752284864278,3.58,163.68,163.61,3.36]
[1752284864973,3.29,163.64,163.61,6.1097]
[1752284865175,3.29,163.64,163.63,0.04502295]
[1752284865374,3.29,163.64,163.63,3.37502295]
[1752284865575,6.108,163.66,163.63,3.37502295]
[1752284865776,3.29,163.66,163.63,3.37502295]
[1752284867184,3.29,163.66,163.63,6.15412295]
[1752284867386,3.29,163.66,163.64,3.33]
[1752284870085,9.398,163.66,163.64,3.33]
[1752284870288,3.29,163.65,163.64,3.33]
[1752284871375,3.29,163.65,163.63,0.04502295]
[1752284871979,3.29,163.65,163.6,3.76443848]
[1752284871980,3.29,163.64,163.6,3.33]
[1752284872984,6.1096,163.62,163.61,3.33]
[1752284873184,9.3996,163.62,163.61,3.33]
[1752284875591,6.1092,163.63,163.61,3.33]
[1752284875783,9.3992,163.63,163.61,3.33]
[1752284876891,6.1095,163.62,163.61,3.33]
[1752284877090,9.3995,163.62,163.61,3.33]
[1752284878392,3.29,163.62,163.61,3.33]
[1752284880500,9.3992,163.63,163.61,3.33]
[1752284880897,3.29,163.62,163.59,9.4405]
[1752284881101,3.29,163.62,163.6,3.33]
[1752284882102,3.29,163.63,163.61,3.33]
[1752284882301,3.33371787,163.63,163.61,3.33]
[1752284882797,0.04371787,163.63,163.62,6.1095]
[1752284882998,0.04371787,163.63,163.62,13.20428991]
[1752284883206,211.2,163.68,163.63,3.33]
[1752284883207,214.49,163.68,163.63,3.33]
[1752284883502,214.49,163.68,163.67,3.33]
[1752284885097,220.5973,163.68,163.67,3.33]
[1752284886698,211.2,163.68,163.67,3.33]
[1752284890704,217.3073,163.68,163.67,3.33]
[1752284891400,211.2,163.68,163.67,3.33]
[1752284892903,281.7,163.68,163.67,3.33]
[1752284894403,284.99,163.68,163.67,3.33]
[1752284894903,291.0973,163.68,163.67,3.33]
[1752284895304,287.8073,163.68,163.67,3.33]
[1752284895809,281.7,163.68,163.67,3.33]
[1752284896508,3.39,163.67,163.66,0.04648061]
[1752284896711,3.39,163.67,163.66,3.48648061]
[1752284897908,9.4977,163.67,163.66,3.48648061]
[1752284900011,3.39,163.67,163.66,3.48648061]
[1752284900314,291.1974,163.68,163.66,3.48648061]
[1752284901012,287.8074,163.68,163.66,9.59448061]
[1752284901203,287.8074,163.68,163.66,6.15448061]
[1752284901409,287.8074,163.68,163.67,3.44]